Cogmind - Beta 13 @@@ ROGUE MODE // 2024.03.03 @ 15:45:57 // Winter2019/RPGLIKE Player: surfboardsofcanada Result: Destroyed by L-31 Rogue with Katana Performance ------------- Evolutions (1) 500 Regions Visited (3) 600 Robots Destroyed (5) 25 Value Destroyed (111) 111 Prototype IDs (0) 0 Alien Tech Used (0) 0 Bonus (0) 0 TOTAL SCORE: 1236 Bonus ------- None Cogmind --------- Core Integrity 0/600 Matter 216/300 Energy 75/100 System Corruption 0% Temperature Cool (0) Movement Walking (120) Location -9/Materials Parts ------- > --- POWER (1) -------- (None) > --- PROPULSION (2) --- Aluminum Leg > --- UTILITY (2) ------ (None) > --- WEAPON (2) ------- Particle Gun > --- INVENTORY (3) ---- Mini Grenade Launcher Peak State ------------ > --- POWER ------------ Light Nuclear Core > --- PROPULSION ------- Aluminum Leg Aluminum Leg > --- UTILITY ---------- (None) > --- WEAPON ----------- Heavy Assault Rifle Heavy Assault Rifle > --- INVENTORY -------- Heavy Assault Rifle Mini Grenade Launcher [Rating: 9] Favorites ----------- Power Light Nuclear Core Engine Light Ion Engine Power Core Light Nuclear Core Propulsion Aluminum Leg Leg Aluminum Leg Utility None Weapon Heavy Assault Rifle Energy Gun Particle Gun Ballistic Gun Heavy Assault Rifle Build | -11 -10 -10 -9 ------- Run | Yrd Mat Min Mat Slots Evolved 3 | 3 . . . Power . | . . . . Propulsion 1 | 1 . . . Utility 1 | 1 . . . Weapon 1 | 1 . . . Parts Attached 15 | 5 4 3 3 Power 2 | 1 . 1 . Engine 1 | 1 . . . Core 1 | . . 1 . Reactor . | . . . . Propulsion 3 | 2 1 . . Treads . | . . . . Leg 3 | 2 1 . . Wheel . | . . . . Hover . | . . . . Flight . | . . . . Utility . | . . . . Device . | . . . . Storage . | . . . . Processor . | . . . . Hackware . | . . . . Protection . | . . . . Artifact . | . . . . Weapon 10 | 2 3 2 3 Energy Gun 3 | 1 . 1 1 Energy Cannon . | . . . . Ballistic Gun 7 | 1 3 1 2 Ballistic Cannon . | . . . . Launcher . | . . . . Special Weapon . | . . . . Impact Weapon . | . . . . Slashing Weapon . | . . . . Piercing Weapon . | . . . . Special Melee Weapon . | . . . . Unidentified Prototypes . | . . . . Parts Lost . | . . . . Power . | . . . . Propulsion . | . . . . Utility . | . . . . Weapon . | . . . . Highest Loss Streak . | . . . . To Critical Strikes . | . . . . Average Slot Usage (%) 63 | . 63 68 54 Engine 4 | . 14 3 . Core 8 | . . 9 12 Leg 26 | . 28 28 22 Energy Gun 8 | . 7 9 6 Ballistic Gun 15 | . 14 17 14 Naked Turns . | . . . . Heaviest Build 11 | 6 9 11 11 Greatest Support 20 | 20 20 20 20 Greatest Overweight (x) 1 | 1 . . . Average Overweight (x) . | . . . . Largest Inventory Capacity 3 | 3 3 3 3 Average Capacity 3 | 3 3 3 3 Most Carried 3 | . 3 3 3 Average Carried 2 | . 1 2 2 Final Capacity 3 | 3 3 3 3 Final Carried 3 | . 3 3 1 Class Distribution -------------------- 100% | Mutant Dominant Class ---------------- Mutant | -10/Materials Mutant | -10/Mines Mutant | -9/Materials Resources | -11 -10 -10 -9 ----------- Run | Yrd Mat Min Mat Matter Collected 374 | 250 . 124 . Remotely . | . . . . Salvage Created 147 | . . 147 . Parts 10 | . . 10 . Haulers Intercepted . | . . . . Recyclers Shooed . | . . . . Parts Field Recycled . | . . . . Retrieved Matter . | . . . . Parts Self-Destructed . | . . . . Prevented . | . . . . Kills | -11 -10 -10 -9 ------- Run | Yrd Mat Min Mat Combat Hostiles Destroyed 5 | . . 5 . Guns 5 | . . 5 . Classes Destroyed 2 | . . 2 . Swarmer 3 | . . 3 . Grunt 2 | . . 2 . Best Kill Streak 3 | . . 3 . Combat Bots Only 3 | . . 3 . Max Kills in Single Turn 1 | . . 1 . Gunslinging . | . . . . Exploded . | . . . . Melee . | . . . . Uniques/NPCs Destroyed . | . . . . Combat | -11 -10 -10 -9 -------- Run | Yrd Mat Min Mat Hostile Shots Fired 41 | . . 24 17 Missed 6 | . . 4 2 Damage Taken 743 | . . 245 498 Core 611 | . . 205 406 Absorbed by Shields . | . . . . Redirected to Core 466 | . . 128 338 Core Remaining (%) 82 | 100 . 65 . Volleys Fired 31 | . . 13 18 Largest 2 | . . 2 2 Hottest 88 | . . 88 88 Shots Fired 42 | . . 22 20 Gun 42 | . . 22 20 Cannon . | . . . . Launcher . | . . . . Special . | . . . . Kinetic 36 | . . 18 18 Thermal 6 | . . 4 2 Explosive . | . . . . Electromagnetic . | . . . . Robot Hit Streak 16 | . . 5 16 Robot Miss Streak 2 | . . 1 2 Penetration Max . | . . . . Secondary Targets . | . . . . Shots Hit Robots 33 | . . 16 17 Core Hits 9 | . . 7 2 Critical Kills . | . . . . Critical Parts Destroyed 1 | . . 1 . Critical Strikes 1 | . . 1 . Destroy 1 | . . 1 . Melee Attacks . | . . . . Impact . | . . . . Slashing . | . . . . Piercing . | . . . . Sneak Attacks . | . . . . Combat Hostiles . | . . . . Follow-up Attacks . | . . . . Damage Inflicted 486 | . . 236 250 Guns 486 | . . 236 250 Cannons . | . . . . Explosions . | . . . . Melee . | . . . . Ramming . | . . . . Kinetic 445 | . . 208 237 Thermal 41 | . . 28 13 Explosive . | . . . . Electromagnetic . | . . . . Impact . | . . . . Slashing . | . . . . Piercing . | . . . . Highest Corruption . | . . . . Average Corruption . | . . . . Corruption Purged . | . . . . Corruption Blocked . | . . . . Overload Shots . | . . . . Overflow Damage . | . . . . Projectiles . | . . . . Explosions . | . . . . Melee . | . . . . Knockbacks . | . . . . Impact . | . . . . Kinetic . | . . . . Secondary . | . . . . Self-Inflicted Damage . | . . . . Shots . | . . . . Rammed . | . . . . Targets Rammed . | . . . . Kicked . | . . . . Crushed . | . . . . Highest Temperature 132 | . . 132 33 Average Temperature 39 | . . 44 18 Received Heat Transfer 120 | . . 120 . Siege Activations . | . . . . Robots Corrupted . | . . . . Combat Hostiles . | . . . . Parts Fried . | . . . . Impact Corruptions . | . . . . Robots Melted . | . . . . Combat Hostiles . | . . . . Parts Melted . | . . . . Heat Transferred 111 | . . 74 37 Parts Sabotaged . | . . . . Parts Stolen . | . . . . Parts Stripped . | . . . . Power Chain Reactions . | . . . . Alert | -11 -10 -10 -9 ------- Run | Yrd Mat Min Mat Peak Influence 120 | . . 120 61 Initial 46 | . . . 46 Average 33 | . . 54 48 Maximum Alert Level . | . . . . Low Security (%) 100 | 100 100 100 100 Level 1 . | . . . . Level 2 . | . . . . Level 3 . | . . . . Level 4 . | . . . . Level 5 . | . . . . High Security . | . . . . Max Security . | . . . . Squads Dispatched . | . . . . Investigation . | . . . . Extermination . | . . . . Reinforcement . | . . . . Assault . | . . . . Garrison . | . . . . Intercept . | . . . . Searches Triggered . | . . . . Construction Impeded . | . . . . Haulers Reinforced . | . . . . Active Scanning Responses . | . . . . Cargo Convoy Interrupts . | . . . . Stealth | -11 -10 -10 -9 --------- Run | Yrd Mat Min Mat Distress Signals . | . . . . Communications Jammed . | . . . . Distress Signals . | . . . . Times Spotted 9 | . . 5 4 Peak Tracking Total 3 | . . 3 3 Tactical Retreats 1 | . . . 1 Traps | -11 -10 -10 -9 ------- Run | Yrd Mat Min Mat Traps Triggered 1 | . 1 . . Indirectly . | . . . . Trap Hack Attempts . | . . . . Triggered . | . . . . Disarmed . | . . . . Reprogrammed . | . . . . Reused . | . . . . Traps Extracted . | . . . . Installed . | . . . . Triggered . | . . . . Machines | -11 -10 -10 -9 ---------- Run | Yrd Mat Min Mat Machines Disabled . | . . . . Max in Single Turn . | . . . . Machines Repaired . | . . . . Machines Dismantled . | . . . . Machines Sabotaged . | . . . . Overloaded Fab Kills . | . . . . Hacking | -11 -10 -10 -9 --------- Run | Yrd Mat Min Mat Machines Accessed . | . . . . Terminals . | . . . . Fabricators . | . . . . Repair Stations . | . . . . Recycling Units . | . . . . Scanalyzers . | . . . . Garrison Access . | . . . . Total Hacks . | . . . . Successful . | . . . . Failed . | . . . . Catastrophic . | . . . . Database Lockouts . | . . . . Manual . | . . . . Terminals . | . . . . Fabricators . | . . . . Repair Stations . | . . . . Recycling Units . | . . . . Scanalyzers . | . . . . Garrison Access . | . . . . Terminal Hacks . | . . . . Fabricator Hacks . | . . . . Repair Station Hacks . | . . . . Recycling Unit Hacks . | . . . . Scanalyzer . | . . . . Garrison Access Hacks . | . . . . Unauthorized Hacks . | . . . . Terminals . | . . . . Fabricators . | . . . . Repair Stations . | . . . . Recycling Units . | . . . . Scanalyzers . | . . . . Garrison Access . | . . . . Data Cores Recovered . | . . . . Used . | . . . . Hacking Detections . | . . . . Full Trace Events . | . . . . Feedback Events . | . . . . Feedback Blocked . | . . . . Robot Schematics Acquired . | . . . . Robots Built . | . . . . Authchips . | . . . . Time . | . . . . Total Robot Build Rating . | . . . . Part Schematics Acquired . | . . . . Parts Built . | . . . . Authchips . | . . . . Time . | . . . . Total Part Build Rating . | . . . . Parts Repaired . | . . . . Time . | . . . . Parts Recycled . | . . . . Recycled Matter . | . . . . Retrieved Matter . | . . . . Retrieved Components . | . . . . Parts Scanalyzed . | . . . . Part Schematics Acquired . | . . . . Parts Damaged . | . . . . Bothacking | -11 -10 -10 -9 ------------ Run | Yrd Mat Min Mat Used RIF Installer . | . . . . Robots Hacked . | . . . . Non-combat . | . . . . Combat . | . . . . Robot Hacks Applied . | . . . . Relay Couplers Released . | . . . . Fabnet Peak Effective % . | . . . . Robots Rewired . | . . . . Allies Hacked . | . . . . Hacks Repelled . | . . . . Allies | -11 -10 -10 -9 -------- Run | Yrd Mat Min Mat Total Allies . | . . . . Largest Group . | . . . . Highest-Rated Group . | . . . . Highest-Rated Ally . | . . . . Total Orders . | . . . . Ally Attacks . | . . . . Total Damage . | . . . . Kills . | . . . . Allies Corrupted . | . . . . Allies Melted . | . . . . Intel | -11 -10 -10 -9 ------- Run | Yrd Mat Min Mat Robot Analysis Total . | . . . . Derelict Logs Recovered . | . . . . Drone Launches . | . . . . Drone Recoveries . | . . . . Exploration | -11 -10 -10 -9 ------------- Run | Yrd Mat Min Mat Turns Passed 307 | 41 67 124 75 Spaces Moved 166 | 32 47 65 22 Core 10 | 10 . . . Treads . | . . . . Legs 156 | 22 47 65 22 Wheels . | . . . . Hover . | . . . . Flight . | . . . . Fastest Speed 50 | 50 120 120 120 Average Speed 117 | 107 120 120 120 Slowest Speed 120 | 120 120 120 120 Overloaded Moves . | . . . . Propulsion Burnouts . | . . . . Robots Hopped . | . . . . Cave-ins Triggered . | . . . . Exploration Rate (%) 9 | 3 16 14 5 Regions Visited 3 Branch Regions 1 Pre-discovered Areas . | . . . . Known Exits Taken . | . . . . Unknown Exits Taken 3 | 1 1 1 . Scrap Searched . | . . . . Spaces Dug . | . . . . Terrain Destroyed . | . . . . Melee . | . . . . Projectile . | . . . . AOE . | . . . . Terrain Rammed . | . . . . Walls Destroyed . | . . . . Machines Disabled . | . . . . Actions | -11 -10 -10 -9 --------- Run | Yrd Mat Min Mat Total 234 | 36 57 89 52 Wait 14 | . . 6 8 Move 163 | 31 46 64 22 Hop . | . . . . Pick Up 8 | . 5 2 1 Fast Attach 7 | 5 2 . . Attach 7 | . 2 2 3 Detach . | . . . . Swap 1 | . . 1 . Drop 3 | . 2 1 . Fire 31 | . . 13 18 Melee . | . . . . Ram . | . . . . Kick . | . . . . Crush . | . . . . Escape Stasis . | . . . . Rewire . | . . . . Trap . | . . . . Miscellaneous . | . . . . Route ------- -11/Scrapyard -10/Materials -10/Mines -9/Materials History --------- Turn | Location | Event 1 | -11/Scrapyard | Upgraded with Propulsion slot (x1) 1 | -11/Scrapyard | Upgraded with Utility slot (x1) 1 | -11/Scrapyard | Upgraded with Weapon slot (x1) 13 | -11/Scrapyard | Discovered new exit (range 14) 42 | -11/Scrapyard | Entered Materials 77 | -10/Materials | Discovered new exit (range 13) 109 | -10/Materials | Entered Mines 179 | -10/Mines | Discovered new exit (range 10) 233 | -10/Mines | Entered Materials 235 | -9/Materials | Reached level 2 277 | -9/Materials | Core integrity fell below 50% 294 | -9/Materials | Core integrity fell below 20% 307 | -9/Materials | Build established: Mutant 308 | -9/Materials | Destroyed by L-31 Rogue with Katana Last Messages --------------- 00142_ Acquired Particle Gun. 00144_ Acquired 10 matter. 00152_ R-06 Scavenger collects Aluminum Leg. 00179_ EXIT=FOUND 00209_ S-10 Pest destroyed. 00218_ R-06 Scavenger collects Lgt. Ion Engine. 00219_ R-06 Scavenger collects Lgt. Assault Rifle. 00221_ Acquired 12 matter. 00224_ R-06 Scavenger collects Flight Unit. LOCATION=UNKNOWN GOAL=ESCAPE 00235_ Reached level 2. 00268_ Particle Gun severed. 00273_ Aluminum Leg severed. 00283_ Hvy. Assault Rifle severed. 00287_ Destroyed Imp. Ion Engine. 00288_ Hvy. Assault Rifle severed. 00296_ Lgt. Nuclear Core severed. 00306_ Hvy. Assault Rifle severed. 00306_ Acquired Particle Gun. Map ----- +----------------------------------------------------+ | ?????????????????????????????????????????????????? | | ?????????????????????????????????????????????????? | | ?????????????????????????????????????????????????? | | ?????????????????????????????????????????????????? | | ?????????????????????????????????????????????????? | | ?????????????????????????????????????????????????? | | ?????????????????????????????????????????????????? | | ?????????????????????????????????????????????????? | | ?????????????????????????????????????????????????? | | ?????????????????????????????????????????????????? | | ??????????????????????????? ???????????????????? | | ??????????????????????????? #??????????????????? | | ??????????????????????????? #??????????????????? | | ??????????????????????????? #??????????????????? | | ??????????????????????????? #??????????????????? | | ??????????????????????????? #??????????????????? | | ??????????????????????????? T??????????????????? | | ??????????????????????????# #??????????????????? | | ??????????????????????????# #??????????????????? | | ??????????????????????????# #??????????????????? | | ??????????????????????????# #??????????????????? | | ?????????????????########## #??????????????????? | | ?????????????????# # #??????????????????? | | ?????????????????# """[# #??????????????????? | | ?????????????????# """[# #??????????????????? | | ?????????????????# """@# #??????????????????? | | ?????????????????# """=l[ #############??????? | | ?????????????????# """*# # #??????? | | ?????????????????# # # "" ???????? | | ?????????????????# # # "T """ ???????? | | ?????????????????# # # "" """ #??????? | | ?????????????????########## # """ #??????? | | ??????????????????????????# # #??????? | | ??????????????????????????# + #??????? | | ??????????????????????????# ############???????? | | ??????????????????????????# #??????????????????? | | ??????????????????????????# #??????????????????? | | ??????????????????????????#####??????????????????? | | ?????????????????????????????????????????????????? | | ?????????????????????????????????????????????????? | | ?????????????????????????????????????????????????? | | ?????????????????????????????????????????????????? | | ?????????????????????????????????????????????????? | | | | | | | | | | | | | | | +----------------------------------------------------+ Best States ------------- Heat Dissipation 25 Energy Generation 14 Energy Capacity 160 Matter Stores 300 Matter Capacity 300 Sight Range 16 Terrain Scan Density 10 Evasion (%) 55 Item Schematics ----------------- None Robot Schematics ------------------ None Fabricated ------------ Nothing Alien Tech Used ----------------- None Achievements -------------- None Challenges ------------ None RPGLIKE | -11 -10 -10 -9 --------- Run | Yrd Mat Min Mat Levels Raised 1 | . . . 1 XP Earned 5600 | 3000 . 1100 1500 XP Spent 3000 | 3000 . . . Upgrades 6 | 6 . . . Propulsion Slot 1 | 1 . . . Utility Slot 1 | 1 . . . Weapon Slot 1 | 1 . . . Inventory Capacity 3 | 3 . . . Protomatter Created 13 | . . 13 . Protomatter Decayed . | . . . . Game ------ Seed ChainHoverMembrane Manual? 0 Play Time 00:05:28 Cumulative 18.7 hours Start 2024.03.03 @ 15:34:03 End 2024.03.03 @ 15:45:57 Sessions 1 Manual Loads 0 Difficulty Rogue Special Mode Winter2019/RPGLIKE Game No. 33 Rogue 22 Adventurer 11 Explorer 0 Win Type - Total 0 Types 0/0/0/0/0/0/0/0/0 Lore% 22 Gallery% 26 Achievement% 32 Wizard Run 0 Options --------- Layout 0 ASCII 0 Keyboard 0 Movement Mouse Keybinds 0 Fullscreen 2 Font 18/SmallcapsGlow Map View 76x50 Zoom Use 0% Tactical HUD 1 Map Filters NONE Filters NONE Steam 1 RUN: 4ca703fe-0928-4b56-9272-10e37e652b0d